Workbook

Sheet Sommaire
A1: SOMMAIRE cliquer sur le numéro de commande (45) pour accéder à la commande
A2: Numéro De Commande | B2: Domaine | C2: Date Commande | D2: Site D'achat | E2: Statut Commande
A3: 45-XXXXX | B3: Nom dommaine et BE ou BR | C3: XX/XX/XXXX | D3: A choisir (liste) entre : APL et Erasmus | E3: A choisir (liste) entre : En cours, Clôturer, Annuler
A4: 45-89290-2 | B4: Gestion / BE | C4: 2018-09-18 | D4: APL | E4: En cours
A5: 45-89290-1 | B5: Gestion / BE | C5: 2018-09-19 | D5: APL | E5: En cours
A6: 45-87790-3 | B6: DROIT / BE | C6: 2018-09-19 | D6: APL | E6: En cours

Sheet Ne pas utiliser
A1: statut commande | B1: site d'achat | C1: Statut | I1: Pour faire le récapitulatif
A2: En cours | B2: APL | C2: Commande | H2: 1/
A3: Clôturer | B3: Erasmus | C3: Traitement | H3: 2/
A4: Annuler | C4: Equipement | H4: 3/
C5: Rayon | H5: 4/
H6: 5/
H7: 6/
A18: 2 colonnes ci-dessous a rajouter aux différents onglets
A21: Statut | B21: Remarques
A22: Commande

Sheet Feuil1
A1: SITE D'ACHAT | B1: N° LIGNE DAUPHINE | C1: ISBN | D1: TITRE | E1: EDITEUR | F1: ANNEE | G1: PRIX UNITAIRE | H1: QUANTITE | I1: TOTAL | J1: STATUT | K1: REMARQUES | L1: SITE D'ACHAT | M1: N° LIGNE DAUPHINE
A2: APL | B2: 28232 | C2: 978-2-7110-2890-0 | D2: Exercices de fiscalité des entreprises : 2018-2019 / Maurice Cozian,... Martial Chadefaux,… 31e édition 2018-2019 Paris : LexisNexis, DL 2018 Précis fiscal, ISSN 2117-847X | E2: LexisNexis | F2: 2018 | G2: 37 | H2: 4 | I2: 148 | J2: Commande
A3: APL | B3: 28200 | C3: 978-2-247-17736-3 | D3: Code civil [annoté] / [France] ; avec le concours de Georges Wiederkehr,... Xavier Henry,... Alice Tisserand-Martin,... [et al.] ; [coordination éditoriale] Pascale Guiomard,… 118e édition [2019] [à jour de la loi de ratification de la réforme du droit des obligations] Paris : Dalloz, DL 2018 [Codes Dalloz] | E3: Dalloz | F3: 2018 | G3: 20 | H3: 9 | I3: 180 | J3: Commande
A4: APL | B4: 28196 | C4: 978-2-247-17799-8 | D4: Droit civil des obligations : méthodologie & sujets corrigés : 2019 / sous la direction de Annick Batteur ; avec la collaboration de Christophe Alleaume, Margo Bernelin, Laurent Bloch et al. | E4: Dalloz | F4: 2018 | G4: 12.9 | H4: 2 | I4: 25.8 | J4: Commande
A5: APL | B5: 28198 | C5: 978-2-901626-77-0 | D5: Les avocats et le Règlement général sur la protection des données (RGPD) | E5: Gazette du Palais | F5: 2018 | G5: 24 | H5: 1 | I5: 24 | J5: Commande
A6: APL | B6: 28199 | C6: 978-2-7110-2914-3 | D6: Code civil 2019 / annoté sous la direction de Laurent Leveneur | E6: LexisNexis | F6: 2018 | G6: 19.9 | H6: 2 | I6: 39.8 | J6: Commande
A7: APL | B7: 28201 | C7: 978-2-8027-6060-3 | D7: Code de la concurrence : droits européen et français / édition Louis Vogel | E7: Bruylant | F7: 2018 | G7: 95 | H7: 1 | I7: 95 | J7: Commande
A8: APL | B8: 28202 | C8: 978-2-247-17744-8 | D8: Code de procédure civile 2019, annoté / sous la direction de Pierre Callé ; annotations de jurisprudence et bibliographie par Laurent Dargent | E8: Dalloz | F8: 2018 | G8: 35 | H8: 7 | I8: 245 | J8: Commande
A9: APL | B9: 28203 | C9: 978-2-247-18292-3 | D9: Code du travail 2018-2019 : annoté / commentaires en ligne, annotations jurisprudentielles et bibliographiques par Christophe Radé, Caroline Dechristé et Magali Gadrat | E9: Dalloz | F9: 2018 | G9: 45 | H9: 2 | I9: 90 | J9: Commande
A10: APL | B10: 28204 | C10: 978-2-7110-2887-0 | D10: Code du travail 2019 / annoté par Bernard Teyssié | E10: LexisNexis | F10: 2018 | G10: 59 | H10: 2 | I10: 118 | J10: Commande
A11: APL | B11: 28205 | C11: 978-2-36893-350-3 | D11: Concurrence consommation 2019 : à jour du RGPD / rédaction des Editions Francis Lefebvre ; en collaboration avec Marine Bonnier, Virginie Coursière-Pluntz, Elisabeth Flaicher-Maneval et al. | E11: F. Lefebvre | F11: 2018 | G11: 162 | H11: 1 | I11: 162 | J11: Commande
A12: APL | B12: 28206 | C12: 978-2-11-145721-8 | D12: La constitution de 1958, toujours d'actualité ? / Philippe Blachèr | E12: La Documentation française | F12: 2018 | G12: 7.9 | H12: 1 | I12: 7.9 | J12: Commande
A13: APL | B13: 28207 | C13: 978-2-247-17787-5 | D13: Le contrat d'adhésion : perspectives franco-québécoises / sous la direction de Gaël Chantepie et Mathias Latina ; avec les contributions de Vincent Caron, Gaël Chantempie, Elise Charpentier et al. | E13: Dalloz | F13: 2018 | G13: 44 | H13: 1 | I13: 44 | J13: Commande
A14: APL | B14: 28208 | C14: 978-2-247-11975-2 | D14: Cyberdroit 2018-2019 : le droit à l'épreuve de l'Internet / Christiane Féral-Schuhl ; édition Hani Feghali | E14: Dalloz | F14: 2018 | G14: 62 | H14: 1 | I14: 62 | J14: Commande
A15: APL | B15: 28209 | C15: 978-2-275-05645-6 | D15: La décentralisation culturelle / Jean-Marie Pontier | E15: LGDJ | F15: 2018 | G15: 26 | H15: 1 | I15: 26 | J15: Commande
A16: APL | B16: 28210 | C16: 978-2-7110-2950-1 | D16: Droit administratif général / Benoît Plessix | E16: LexisNexis | F16: 2018 | G16: 48 | H16: 2 | I16: 96 | J16: Commande
A17: APL | B17: 28211 | C17: 978-2-275-04860-4 | D17: Droit anglais des affaires / Cécile Le Gallou, Simon Wesley | E17: LGDJ | F17: 2018 | G17: 44 | H17: 1 | I17: 44 | J17: Commande
A18: APL | B18: 28212 | C18: 978-2-247-17832-2 | D18: Droit civil 2e année : les obligations : 2019 / Stéphanie Porchy-Simon | E18: Dalloz | F18: 2018 | G18: 32 | H18: 1 | I18: 32 | J18: Commande
A19: APL | B19: 28213 | C19: 978-2-247-17923-7 | D19: Droit civil : les obligations / Yvaine Buffelan-Lanore ; édition 2018-2019 par Virginie Larribau-Terneyre | E19: Sirey | F19: 2018 | G19: 39 | H19: 1 | I19: 39 | J19: Commande
A20: APL | B20: 28214 | C20: 978-2-275-06164-1 | D20: Droit civil . 1, Introduction au droit : personnes, famille, personnes protégées, biens, obligations, sûretés / Pierre Voirin, Gilles Goubeaux | E20: LGDJ | F20: 2018 | G20: 36 | H20: 1 | I20: 36 | J20: Commande
A21: APL | B21: 28215 | C21: 978-2-247-17854-4 | D21: Droit constitutionnel et institutions politiques / Jean Paul Jacqué | E21: Dalloz | F21: 2018 | G21: 16.5 | H21: 1 | I21: 16.5 | J21: Commande
A22: APL | B22: 28216 | C22: 978-2-275-05467-4 | D22: Droit constitutionnel et institutions politiques : 2018-2019 / Jean Gicquel, Jean-Éric Gicquel | E22: LGDJ | F22: 2018 | G22: 40 | H22: 2 | I22: 80 | J22: Commande
A23: APL | B23: 28217 | C23: 978-2-7110-2794-1 | D23: Droit de la communication / Emmanuel Dreyer | E23: LexisNexis | F23: 2018 | G23: 43 | H23: 2 | I23: 86 | J23: Commande
A24: APL | B24: 28218 | C24: 978-2-86325-738-8 | D24: Droit des financements d'entreprise / Zine Sekfali ; préface de Jean-Pierre Mattout | E24: RB édition | F24: 2018 | G24: 78 | H24: 1 | I24: 78 | J24: Commande
A25: APL | B25: 28219 | C25: 978-2-275-03873-5 | D25: Droit des médias : droit français, européen et international / Emmanuel Derieux | E25: LGDJ | F25: 2018 | G25: 44 | H25: 2 | I25: 88 | J25: Commande
A26: APL | B26: 28220 | C26: 978-2-275-06053-8 | D26: Droit des obligations / Bertrand Fages | E26: LGDJ | F26: 2018 | G26: 35 | H26: 1 | I26: 35 | J26: Commande
A27: APL | B27: 28221 | C27: 978-2-297-06828-4 | D27: Droit des obligations : 2018-2019 / Corinne Renault-Brahinsky | E27: Gualino | F27: 2018 | G27: 19.5 | H27: 1 | I27: 19.5 | J27: Commande
A28: APL | B28: 28222 | C28: 978-2-7110-2955-6 | D28: Droit des obligations : régime général / Philippe Delebecque, Frédéric-Jérôme Pansier | E28: LexisNexis | F28: 2018 | G28: 25 | H28: 1 | I28: 25 | J28: Commande
A29: APL | B29: 28223 | C29: 978-2-7110-2956-3 | D29: Droit des obligations , Contrat et quasi-contrat / Philippe Delebecque, Frédéric-Jérôme Pansier | E29: LexisNexis | F29: 2018 | G29: 25 | H29: 1 | I29: 25 | J29: Commande
A30: APL | B30: 28224 | C30: 978-2-7110-2944-0 | D30: Droit des services publics / Jean-François Lachaume, Hélène Pauliat, Clotilde Deffigier ; avec la collaboration de Aurélie Virot-Landais | E30: LexisNexis | F30: 2018 | G30: 43 | H30: 1 | I30: 43 | J30: Commande
A31: APL | B31: 28225 | C31: 978-2-7110-2948-8 | D31: Droit des sociétés / Maurice Cozian, Florence Deboissy, Alain Viandier | E31: LexisNexis | F31: 2018 | G31: 48 | H31: 8 | I31: 384 | J31: Commande
A32: APL | B32: 28226 | C32: 978-2-01-702561-0 | D32: Droit des sociétés : 2018-2019 / Jérôme Bonnard | E32: Hachette Supérieur | F32: 2018 | G32: 9.95 | H32: 2 | I32: 19.9 | J32: Commande
A33: APL | B33: 28227 | C33: 978-2-39013-195-3 | D33: Droit institutionnel, matériel et contentieux de l'Union européenne / Olivier Blin ; préface de Joël Molinier | E33: Bruylant-Collection Paradigme | F33: 2018 | G33: 39 | H33: 1 | I33: 39 | J33: Commande
A34: APL | B34: 28228 | C34: 978-2-247-17847-6 | D34: Droit pénal général et procédure pénale / Bernard Bouloc, Haritini Matsopoulou | E34: Sirey | F34: 2018 | G34: 30 | H34: 1 | I34: 30 | J34: Commande
A35: APL | B35: 28229 | C35: 978-2-297-06887-1 | D35: L'essentiel du droit des obligations : 2018-2019 / Corinne Renault-Brahinsky | E35: Gualino | F35: 2018 | G35: 15.5 | H35: 1 | I35: 15.5 | J35: Commande
A36: APL | B36: 28230 | C36: 978-2-297-06885-7 | D36: L'essentiel du droit des sûretés : 2018-2019 / Gaël Piette | E36: Gualino | F36: 2018 | G36: 13.5 | H36: 1 | I36: 13.5 | J36: Commande
A37: APL | B37: 28231 | C37: 978-2-275-05978-5 | D37: Etudes à la mémoire de Philippe Neau-Leduc : le juriste dans la cité / ouvrage réalisé à l'initiative de Paul-Henri Antonmattei, Bertrand Brehier, Daniel Gutmann et al. | E37: LGDJ | F37: 2018 | G37: 149 | H37: 1 | I37: 149 | J37: Commande
A38: APL | B38: 28233 | C38: 978-2-247-17853-7 | D38: Institutions internationales / Batyah Sierpinski | E38: Dalloz | F38: 2018 | G38: 16.5 | H38: 2 | I38: 33 | J38: Commande
A39: APL | B39: 28234 | C39: 978-2-275-05498-8 | D39: Introduction au droit / Philippe Malaurie, Patrick Morvan | E39: LGDJ | F39: 2018 | G39: 35 | H39: 1 | I39: 35 | J39: Commande
A40: APL | B40: 28235 | C40: 978-2-36893-375-6 | D40: Mémento social, 18 / rédaction des éditions Francis Lefebvre | E40: F. Lefebvre | F40: 2018 | G40: 65 | H40: 1 | I40: 65 | J40: Commande
A41: APL | B41: 28236 | C41: 978-2-7110-2889-4 | D41: Précis de fiscalité des entreprises 2018-2019 / Maurice Cozian, Florence Deboissy, Martial Chadefaux | E41: LexisNexis | F41: 2018 | G41: 48 | H41: 5 | I41: 240 | J41: Commande
A42: APL | B42: 28237 | C42: 978-2-7110-2242-7 | D42: Procédure pénale / Serge Guinchard, Jacques Buisson | E42: LexisNexis | F42: 2018 | G42: 45 | H42: 1 | I42: 45 | J42: Commande
A43: APL | B43: 28238 | C43: 978-2-247-18279-4 | D43: RGPD loi Informatique et libertés modifiée : la concordance du RGPD avec les dispositions de la loi Informatique et libertés modifiée en un coup d'oeil / édition Zéhina Ait El Kadi, Nathalie Maximin | E43: Dalloz | F43: 2018 | G43: 19.5 | H43: 1 | I43: 19.5 | J43: Commande
A44: APL | B44: 28239 | C44: 978-2-8027-6058-0 | D44: Traité de droit économique . 1, Droit de la concurrence : droit européen / Louis Vogel | E44: Bruylant | F44: 2018 | G44: 95 | H44: 1 | I44: 95 | J44: Commande
A45: APL | B45: 28240 | C45: 978-2-7110-3026-2 | D45: Traité sur l'Union européenne Traité sur le fonctionnement de l'Union européenne Charte des droits fondamentaux / édité par Christine Kaddous et Fabrice Picod ; avec la collaboration de Sandy Kirsch | E45: Staempfli | F45: 2018 | G45: 79 | H45: 1 | I45: 79 | J45: Commande
A46: APL | B46: 28241 | C46: 978-2-36893-344-2 | D46: Transmission d'entreprise 18-19 / Editions Francis Lefebvre | E46: F. Lefebvre | F46: 2018 | G46: 185 | H46: 1 | I46: 185 | J46: Commande
A47: APL | B47: 28242 | C47: 978-2-247-18118-6 | D47: Vers une réforme de la responsabilité civile française : regards croisés franco-québécois / sous la direction de Blandine Mallet-Bricout ; sous l'égide de l'Association Henri Capitant ; avec les contributions de Mireille Bacache-Gibeili, Philipe Brun, François Chénedé et al. | E47: Dalloz | F47: 2018 | G47: 44 | H47: 1 | I47: 44 | J47: Commande
A48: APL | B48: 28181 | C48: 978-2-7619-3882-2 | D48: Cessez d'être gentil, soyez vrai! : être avec les autres en restant soi-même / Thomas d'Ansembourg ; illustrations, Alexis Nouailhat ; préface de Guy Corneau Montréal : HOMME (DE L'), 2013 | E48: HOMME (DE L') | F48: 2013 | G48: 12 | H48: 2 | I48: 24 | J48: Commande | L48: APL | M48: 28181
A49: APL | B49: 28182 | C49: 978-2-266-25883-8 | D49: Choisir sa vie : apprendre à saisir sa chance / Tal Ben-Shahar ; traduit de l'anglais (Etats-Unis) par Hélène Collon Paris : Pocket, 2017 Pocket, ISSN 0244-6405 ; 16361 | E49: Pocket | F49: 2017 | G49: 7.5 | H49: 2 | I49: 15 | J49: Commande | L49: APL | M49: 28182
A50: APL | B50: 28183 | C50: 978-2-88911-973-8 | D50: La communication non violente au quotidien / Marshall B. Rosenberg ; traduction de Simone Mouton di Giovanni ; révisée par Anne Bourrit & Godfrey Spencer Bernex (Suisse) : Jouvence, 2018 Les clés de la CNV | E50: Jouvence | F50: 2018 | G50: 12.9 | H50: 2 | I50: 25.8 | J50: Commande | L50: APL | M50: 28183
A51: APL | B51: 28184 | C51: 978-2-10-071294-6 | D51: Les compétences émotionnelles / sous la direction de Moïra Mikolajczak ; avec la collaboration de Jordi Quoidbach, Ilios Kotsou, Delphine Nelis Nouvelle présentation Malakoff (Hauts-de-Seine) : Dunod, 2014 Psycho sup, ISSN 1275-4854 Psychologie cognitive | E51: Dunod | F51: 2014 | G51: 28 | H51: 1 | I51: 28 | J51: Commande | L51: APL | M51: 28184
A52: APL | B52: 28185 | C52: 978-2-88911-824-3 | D52: Dénouer les conflits par la communication non violente / Marshall B. Rosenberg ; entretiens avec Gabriele Seils ; traduit d'allemand de Daniel Béguin Nouvelle édition Bernex (Suisse) : Jouvence, 2017 Les clés de la CNV | E52: Jouvence | F52: 2017 | G52: 19.5 | H52: 2 | I52: 39 | J52: Commande | L52: APL | M52: 28185
A53: APL | B53: 28186 | C53: 978-2-7381-3411-0 | D53: Et n'oublie pas d'être heureux : abécédaire de psychologie positive / Christophe André Paris : O. Jacob, 2016 | E53: O. Jacob | F53: 2016 | G53: 9.9 | H53: 2 | I53: 19.8 | J53: Commande | L53: APL | M53: 28186
A54: APL | B54: 28187 | C54: 978-2-343-14507-5 | D54: Intelligence et compétences émotionnelles en entreprise : perspectives multiples / sous la direction de Claude Berghmans ; préface Véronique Tran Paris : L'Harmattan, 2018 Economie et innovation, ISSN 1768-5249 | E54: L'Harmattan | F54: 2018 | G54: 35 | H54: 1 | I54: 35 | J54: Commande | L54: APL | M54: 28187
A55: APL | B55: 28188 | C55: 978-2-290-06893-9 | D55: Où tu vas, tu es : apprendre à méditer pour se libérer du stress et des tensions profondes / Jon Kabat-Zinn ; traduit de l'anglais (Etats-Unis) par Yolande Du Luart Nouvelle présentation Paris : J'ai lu, 2013 J'ai lu, ISSN 0291-3623 ; 7516 Bien-être Ahmed Djouder 1159-7623 | E55: J'ai lu | F55: 2013 | G55: 6.7 | H55: 2 | I55: 13.4 | J55: Commande | L55: APL | M55: 28188
A56: APL | B56: 28189 | C56: 978-2-88911-582-2 | D56: Petit cahier d'exercices de communication non violente / Anne van Stappen ; illustrations Jean Augagneur Nouvelle édition Bernex (Suisse) : Jouvence, 2015 Petit cahier, sport cérébral du bien-être ; 10 | E56: Jouvence | F56: 2015 | G56: 6.9 | H56: 2 | I56: 13.8 | J56: Commande | L56: APL | M56: 28189
A57: APL | B57: 28190 | C57: 978-2-412-03399-9 | D57: Trouver son ikigaï : vivre de ce qui nous passionne / Christie Vanbremeersch Paris : First Editions, 2018 L'optimiste | E57: First Editions | F57: 2018 | G57: 12.95 | H57: 2 | I57: 25.9 | J57: Commande | L57: APL | M57: 28190
A58: APL | B58: 28195 | C58: 978-2-10-056703-4 | D58: La stratégie prix : le pricing : levier indispensable pour augmenter votre rentabilité / Hermann Simon, Florent Jacquet, Franck Brault 3e édition [mise à jour] Paris : Dunod, DL 2011 Stratégies et management | E58: Dunod | F58: 2011 | G58: 34 | H58: 1 | I58: 34 | J58: Commande
A59: APL | B59: 28193 | C59: 978-2-911256-99-8 | D59: Introduction à la conception innovante : éléments théoriques et pratiques de la théorie C-K / Marine Agogué, Frédéric Arnoux, Ingi Brown... [et al.] ; [préface de A. Hatchuel et B. Weil ; posface de C. Trémoureux] Paris : Presses des Mines-Transvalor, impr. 2013 Collection Économie et gestion | E59: Presses des Mines-Transvalor | F59: 2013 | G59: 15 | H59: 1 | I59: 15 | J59: Commande
A60: APL | B60: 28192 | C60: 978-2-311-40148-6 | D60: Études de marché / Jean-Luc Giannelloni,... Éric Vernette,… 4e édition Paris : Vuibert, impr. 2015, cop. 2015 Collection gestion, ISSN 0751-2872 | E60: Vuibert | F60: 2015 | G60: 45 | H60: 1 | I60: 45 | J60: Commande
A61: APL | B61: 28194 | C61: 978-2-3260-0152-7 | D61: Marketing digital / Dave Chaffey,... Fiona Ellis-Chadwick ; [traduction et adaptation de l'anglais], Maria Mercanti-Guérin,... Henri Isaac,... Pierre Volle,… 6e édition Montreuil : Pearson, copyright 2017 | E61: Pearson | F61: 2017 | G61: 49 | H61: 1 | I61: 49 | J61: Commande

Sheet 45-87790-3
A1: SITE D'ACHAT | B1: N° LIGNE DAUPHINE | C1: ISBN | D1: TITRE | E1: EDITEUR | F1: ANNEE | G1: PRIX UNITAIRE | H1: QUANTITE | I1: TOTAL | J1: STATUT | K1: REMARQUES
A2: APL | B2: 28232 | C2: 978-2-7110-2890-0 | D2: Exercices de fiscalité des entreprises : 2018-2019 / Maurice Cozian,... Martial Chadefaux,… 31e édition 2018-2019 Paris : LexisNexis, DL 2018 Précis fiscal, ISSN 2117-847X | E2: LexisNexis | F2: 2018 | G2: 37 | H2: 4 | I2: =C45877903[[#This Row],[QUANTITE]]*C45877903[[#This Row],[PRIX UNITAIRE]] -> 148 | J2: Commande
A3: APL | B3: 28200 | C3: 978-2-247-17736-3 | D3: Code civil [annoté] / [France] ; avec le concours de Georges Wiederkehr,... Xavier Henry,... Alice Tisserand-Martin,... [et al.] ; [coordination éditoriale] Pascale Guiomard,… 118e édition [2019] [à jour de la loi de ratification de la réforme du droit des obligations] Paris : Dalloz, DL 2018 [Codes Dalloz] | E3: Dalloz | F3: 2018 | G3: 20 | H3: 9 | I3: =C45877903[[#This Row],[QUANTITE]]*C45877903[[#This Row],[PRIX UNITAIRE]] -> 180 | J3: Commande
A4: APL | B4: 28196 | C4: 978-2-247-17799-8 | D4: Droit civil des obligations : méthodologie & sujets corrigés : 2019 / sous la direction de Annick Batteur ; avec la collaboration de Christophe Alleaume, Margo Bernelin, Laurent Bloch et al. | E4: Dalloz | F4: 2018 | G4: 12.9 | H4: 2 | I4: =C45877903[[#This Row],[QUANTITE]]*C45877903[[#This Row],[PRIX UNITAIRE]] -> 25.8 | J4: Commande
A5: APL | B5: 28198 | C5: 978-2-901626-77-0 | D5: Les avocats et le Règlement général sur la protection des données (RGPD) | E5: Gazette du Palais | F5: 2018 | G5: 24 | H5: 1 | I5: =C45877903[[#This Row],[QUANTITE]]*C45877903[[#This Row],[PRIX UNITAIRE]] -> 24 | J5: Commande
A6: APL | B6: 28199 | C6: 978-2-7110-2914-3 | D6: Code civil 2019 / annoté sous la direction de Laurent Leveneur | E6: LexisNexis | F6: 2018 | G6: 19.9 | H6: 2 | I6: =C45877903[[#This Row],[QUANTITE]]*C45877903[[#This Row],[PRIX UNITAIRE]] -> 39.8 | J6: Commande
A7: APL | B7: 28201 | C7: 978-2-8027-6060-3 | D7: Code de la concurrence : droits européen et français / édition Louis Vogel | E7: Bruylant | F7: 2018 | G7: 95 | H7: 1 | I7: =C45877903[[#This Row],[QUANTITE]]*C45877903[[#This Row],[PRIX UNITAIRE]] -> 95 | J7: Commande
A8: APL | B8: 28202 | C8: 978-2-247-17744-8 | D8: Code de procédure civile 2019, annoté / sous la direction de Pierre Callé ; annotations de jurisprudence et bibliographie par Laurent Dargent | E8: Dalloz | F8: 2018 | G8: 35 | H8: 7 | I8: =C45877903[[#This Row],[QUANTITE]]*C45877903[[#This Row],[PRIX UNITAIRE]] -> 245 | J8: Commande
A9: APL | B9: 28203 | C9: 978-2-247-18292-3 | D9: Code du travail 2018-2019 : annoté / commentaires en ligne, annotations jurisprudentielles et bibliographiques par Christophe Radé, Caroline Dechristé et Magali Gadrat | E9: Dalloz | F9: 2018 | G9: 45 | H9: 2 | I9: =C45877903[[#This Row],[QUANTITE]]*C45877903[[#This Row],[PRIX UNITAIRE]] -> 90 | J9: Commande
A10: APL | B10: 28204 | C10: 978-2-7110-2887-0 | D10: Code du travail 2019 / annoté par Bernard Teyssié | E10: LexisNexis | F10: 2018 | G10: 59 | H10: 2 | I10: =C45877903[[#This Row],[QUANTITE]]*C45877903[[#This Row],[PRIX UNITAIRE]] -> 118 | J10: Commande
A11: APL | B11: 28205 | C11: 978-2-36893-350-3 | D11: Concurrence consommation 2019 : à jour du RGPD / rédaction des Editions Francis Lefebvre ; en collaboration avec Marine Bonnier, Virginie Coursière-Pluntz, Elisabeth Flaicher-Maneval et al. | E11: F. Lefebvre | F11: 2018 | G11: 162 | H11: 1 | I11: =C45877903[[#This Row],[QUANTITE]]*C45877903[[#This Row],[PRIX UNITAIRE]] -> 162 | J11: Commande
A12: APL | B12: 28206 | C12: 978-2-11-145721-8 | D12: La constitution de 1958, toujours d'actualité ? / Philippe Blachèr | E12: La Documentation française | F12: 2018 | G12: 7.9 | H12: 1 | I12: =C45877903[[#This Row],[QUANTITE]]*C45877903[[#This Row],[PRIX UNITAIRE]] -> 7.9 | J12: Commande
A13: APL | B13: 28207 | C13: 978-2-247-17787-5 | D13: Le contrat d'adhésion : perspectives franco-québécoises / sous la direction de Gaël Chantepie et Mathias Latina ; avec les contributions de Vincent Caron, Gaël Chantempie, Elise Charpentier et al. | E13: Dalloz | F13: 2018 | G13: 44 | H13: 1 | I13: =C45877903[[#This Row],[QUANTITE]]*C45877903[[#This Row],[PRIX UNITAIRE]] -> 44 | J13: Commande
A14: APL | B14: 28208 | C14: 978-2-247-11975-2 | D14: Cyberdroit 2018-2019 : le droit à l'épreuve de l'Internet / Christiane Féral-Schuhl ; édition Hani Feghali | E14: Dalloz | F14: 2018 | G14: 62 | H14: 1 | I14: =C45877903[[#This Row],[QUANTITE]]*C45877903[[#This Row],[PRIX UNITAIRE]] -> 62 | J14: Commande
A15: APL | B15: 28209 | C15: 978-2-275-05645-6 | D15: La décentralisation culturelle / Jean-Marie Pontier | E15: LGDJ | F15: 2018 | G15: 26 | H15: 1 | I15: =C45877903[[#This Row],[QUANTITE]]*C45877903[[#This Row],[PRIX UNITAIRE]] -> 26 | J15: Commande
A16: APL | B16: 28210 | C16: 978-2-7110-2950-1 | D16: Droit administratif général / Benoît Plessix | E16: LexisNexis | F16: 2018 | G16: 48 | H16: 2 | I16: =C45877903[[#This Row],[QUANTITE]]*C45877903[[#This Row],[PRIX UNITAIRE]] -> 96 | J16: Commande
A17: APL | B17: 28211 | C17: 978-2-275-04860-4 | D17: Droit anglais des affaires / Cécile Le Gallou, Simon Wesley | E17: LGDJ | F17: 2018 | G17: 44 | H17: 1 | I17: =C45877903[[#This Row],[QUANTITE]]*C45877903[[#This Row],[PRIX UNITAIRE]] -> 44 | J17: Commande
A18: APL | B18: 28212 | C18: 978-2-247-17832-2 | D18: Droit civil 2e année : les obligations : 2019 / Stéphanie Porchy-Simon | E18: Dalloz | F18: 2018 | G18: 32 | H18: 1 | I18: =C45877903[[#This Row],[QUANTITE]]*C45877903[[#This Row],[PRIX UNITAIRE]] -> 32 | J18: Commande
A19: APL | B19: 28213 | C19: 978-2-247-17923-7 | D19: Droit civil : les obligations / Yvaine Buffelan-Lanore ; édition 2018-2019 par Virginie Larribau-Terneyre | E19: Sirey | F19: 2018 | G19: 39 | H19: 1 | I19: =C45877903[[#This Row],[QUANTITE]]*C45877903[[#This Row],[PRIX UNITAIRE]] -> 39 | J19: Commande
A20: APL | B20: 28214 | C20: 978-2-275-06164-1 | D20: Droit civil . 1, Introduction au droit : personnes, famille, personnes protégées, biens, obligations, sûretés / Pierre Voirin, Gilles Goubeaux | E20: LGDJ | F20: 2018 | G20: 36 | H20: 1 | I20: =C45877903[[#This Row],[QUANTITE]]*C45877903[[#This Row],[PRIX UNITAIRE]] -> 36 | J20: Commande
A21: APL | B21: 28215 | C21: 978-2-247-17854-4 | D21: Droit constitutionnel et institutions politiques / Jean Paul Jacqué | E21: Dalloz | F21: 2018 | G21: 16.5 | H21: 1 | I21: =C45877903[[#This Row],[QUANTITE]]*C45877903[[#This Row],[PRIX UNITAIRE]] -> 16.5 | J21: Commande
A22: APL | B22: 28216 | C22: 978-2-275-05467-4 | D22: Droit constitutionnel et institutions politiques : 2018-2019 / Jean Gicquel, Jean-Éric Gicquel | E22: LGDJ | F22: 2018 | G22: 40 | H22: 2 | I22: =C45877903[[#This Row],[QUANTITE]]*C45877903[[#This Row],[PRIX UNITAIRE]] -> 80 | J22: Commande
A23: APL | B23: 28217 | C23: 978-2-7110-2794-1 | D23: Droit de la communication / Emmanuel Dreyer | E23: LexisNexis | F23: 2018 | G23: 43 | H23: 2 | I23: =C45877903[[#This Row],[QUANTITE]]*C45877903[[#This Row],[PRIX UNITAIRE]] -> 86 | J23: Commande
A24: APL | B24: 28218 | C24: 978-2-86325-738-8 | D24: Droit des financements d'entreprise / Zine Sekfali ; préface de Jean-Pierre Mattout | E24: RB édition | F24: 2018 | G24: 78 | H24: 1 | I24: =C45877903[[#This Row],[QUANTITE]]*C45877903[[#This Row],[PRIX UNITAIRE]] -> 78 | J24: Commande
A25: APL | B25: 28219 | C25: 978-2-275-03873-5 | D25: Droit des médias : droit français, européen et international / Emmanuel Derieux | E25: LGDJ | F25: 2018 | G25: 44 | H25: 2 | I25: =C45877903[[#This Row],[QUANTITE]]*C45877903[[#This Row],[PRIX UNITAIRE]] -> 88 | J25: Commande
A26: APL | B26: 28220 | C26: 978-2-275-06053-8 | D26: Droit des obligations / Bertrand Fages | E26: LGDJ | F26: 2018 | G26: 35 | H26: 1 | I26: =C45877903[[#This Row],[QUANTITE]]*C45877903[[#This Row],[PRIX UNITAIRE]] -> 35 | J26: Commande
A27: APL | B27: 28221 | C27: 978-2-297-06828-4 | D27: Droit des obligations : 2018-2019 / Corinne Renault-Brahinsky | E27: Gualino | F27: 2018 | G27: 19.5 | H27: 1 | I27: =C45877903[[#This Row],[QUANTITE]]*C45877903[[#This Row],[PRIX UNITAIRE]] -> 19.5 | J27: Commande
A28: APL | B28: 28222 | C28: 978-2-7110-2955-6 | D28: Droit des obligations : régime général / Philippe Delebecque, Frédéric-Jérôme Pansier | E28: LexisNexis | F28: 2018 | G28: 25 | H28: 1 | I28: =C45877903[[#This Row],[QUANTITE]]*C45877903[[#This Row],[PRIX UNITAIRE]] -> 25 | J28: Commande
A29: APL | B29: 28223 | C29: 978-2-7110-2956-3 | D29: Droit des obligations , Contrat et quasi-contrat / Philippe Delebecque, Frédéric-Jérôme Pansier | E29: LexisNexis | F29: 2018 | G29: 25 | H29: 1 | I29: =C45877903[[#This Row],[QUANTITE]]*C45877903[[#This Row],[PRIX UNITAIRE]] -> 25 | J29: Commande
A30: APL | B30: 28224 | C30: 978-2-7110-2944-0 | D30: Droit des services publics / Jean-François Lachaume, Hélène Pauliat, Clotilde Deffigier ; avec la collaboration de Aurélie Virot-Landais | E30: LexisNexis | F30: 2018 | G30: 43 | H30: 1 | I30: =C45877903[[#This Row],[QUANTITE]]*C45877903[[#This Row],[PRIX UNITAIRE]] -> 43 | J30: Commande
A31: APL | B31: 28225 | C31: 978-2-7110-2948-8 | D31: Droit des sociétés / Maurice Cozian, Florence Deboissy, Alain Viandier | E31: LexisNexis | F31: 2018 | G31: 48 | H31: 8 | I31: =C45877903[[#This Row],[QUANTITE]]*C45877903[[#This Row],[PRIX UNITAIRE]] -> 384 | J31: Commande
A32: APL | B32: 28226 | C32: 978-2-01-702561-0 | D32: Droit des sociétés : 2018-2019 / Jérôme Bonnard | E32: Hachette Supérieur | F32: 2018 | G32: 9.95 | H32: 2 | I32: =C45877903[[#This Row],[QUANTITE]]*C45877903[[#This Row],[PRIX UNITAIRE]] -> 19.9 | J32: Commande
A33: APL | B33: 28227 | C33: 978-2-39013-195-3 | D33: Droit institutionnel, matériel et contentieux de l'Union européenne / Olivier Blin ; préface de Joël Molinier | E33: Bruylant-Collection Paradigme | F33: 2018 | G33: 39 | H33: 1 | I33: =C45877903[[#This Row],[QUANTITE]]*C45877903[[#This Row],[PRIX UNITAIRE]] -> 39 | J33: Commande
A34: APL | B34: 28228 | C34: 978-2-247-17847-6 | D34: Droit pénal général et procédure pénale / Bernard Bouloc, Haritini Matsopoulou | E34: Sirey | F34: 2018 | G34: 30 | H34: 1 | I34: =C45877903[[#This Row],[QUANTITE]]*C45877903[[#This Row],[PRIX UNITAIRE]] -> 30 | J34: Commande
A35: APL | B35: 28229 | C35: 978-2-297-06887-1 | D35: L'essentiel du droit des obligations : 2018-2019 / Corinne Renault-Brahinsky | E35: Gualino | F35: 2018 | G35: 15.5 | H35: 1 | I35: =C45877903[[#This Row],[QUANTITE]]*C45877903[[#This Row],[PRIX UNITAIRE]] -> 15.5 | J35: Commande
A36: APL | B36: 28230 | C36: 978-2-297-06885-7 | D36: L'essentiel du droit des sûretés : 2018-2019 / Gaël Piette | E36: Gualino | F36: 2018 | G36: 13.5 | H36: 1 | I36: =C45877903[[#This Row],[QUANTITE]]*C45877903[[#This Row],[PRIX UNITAIRE]] -> 13.5 | J36: Commande
A37: APL | B37: 28231 | C37: 978-2-275-05978-5 | D37: Etudes à la mémoire de Philippe Neau-Leduc : le juriste dans la cité / ouvrage réalisé à l'initiative de Paul-Henri Antonmattei, Bertrand Brehier, Daniel Gutmann et al. | E37: LGDJ | F37: 2018 | G37: 149 | H37: 1 | I37: =C45877903[[#This Row],[QUANTITE]]*C45877903[[#This Row],[PRIX UNITAIRE]] -> 149 | J37: Commande
A38: APL | B38: 28233 | C38: 978-2-247-17853-7 | D38: Institutions internationales / Batyah Sierpinski | E38: Dalloz | F38: 2018 | G38: 16.5 | H38: 2 | I38: =C45877903[[#This Row],[QUANTITE]]*C45877903[[#This Row],[PRIX UNITAIRE]] -> 33 | J38: Commande
A39: APL | B39: 28234 | C39: 978-2-275-05498-8 | D39: Introduction au droit / Philippe Malaurie, Patrick Morvan | E39: LGDJ | F39: 2018 | G39: 35 | H39: 1 | I39: =C45877903[[#This Row],[QUANTITE]]*C45877903[[#This Row],[PRIX UNITAIRE]] -> 35 | J39: Commande
A40: APL | B40: 28235 | C40: 978-2-36893-375-6 | D40: Mémento social, 18 / rédaction des éditions Francis Lefebvre | E40: F. Lefebvre | F40: 2018 | G40: 65 | H40: 1 | I40: =C45877903[[#This Row],[QUANTITE]]*C45877903[[#This Row],[PRIX UNITAIRE]] -> 65 | J40: Commande
A41: APL | B41: 28236 | C41: 978-2-7110-2889-4 | D41: Précis de fiscalité des entreprises 2018-2019 / Maurice Cozian, Florence Deboissy, Martial Chadefaux | E41: LexisNexis | F41: 2018 | G41: 48 | H41: 5 | I41: =C45877903[[#This Row],[QUANTITE]]*C45877903[[#This Row],[PRIX UNITAIRE]] -> 240 | J41: Commande
A42: APL | B42: 28237 | C42: 978-2-7110-2242-7 | D42: Procédure pénale / Serge Guinchard, Jacques Buisson | E42: LexisNexis | F42: 2018 | G42: 45 | H42: 1 | I42: =C45877903[[#This Row],[QUANTITE]]*C45877903[[#This Row],[PRIX UNITAIRE]] -> 45 | J42: Commande
A43: APL | B43: 28238 | C43: 978-2-247-18279-4 | D43: RGPD loi Informatique et libertés modifiée : la concordance du RGPD avec les dispositions de la loi Informatique et libertés modifiée en un coup d'oeil / édition Zéhina Ait El Kadi, Nathalie Maximin | E43: Dalloz | F43: 2018 | G43: 19.5 | H43: 1 | I43: =C45877903[[#This Row],[QUANTITE]]*C45877903[[#This Row],[PRIX UNITAIRE]] -> 19.5 | J43: Commande
A44: APL | B44: 28239 | C44: 978-2-8027-6058-0 | D44: Traité de droit économique . 1, Droit de la concurrence : droit européen / Louis Vogel | E44: Bruylant | F44: 2018 | G44: 95 | H44: 1 | I44: =C45877903[[#This Row],[QUANTITE]]*C45877903[[#This Row],[PRIX UNITAIRE]] -> 95 | J44: Commande
A45: APL | B45: 28240 | C45: 978-2-7110-3026-2 | D45: Traité sur l'Union européenne Traité sur le fonctionnement de l'Union européenne Charte des droits fondamentaux / édité par Christine Kaddous et Fabrice Picod ; avec la collaboration de Sandy Kirsch | E45: Staempfli | F45: 2018 | G45: 79 | H45: 1 | I45: =C45877903[[#This Row],[QUANTITE]]*C45877903[[#This Row],[PRIX UNITAIRE]] -> 79 | J45: Commande
A46: APL | B46: 28241 | C46: 978-2-36893-344-2 | D46: Transmission d'entreprise 18-19 / Editions Francis Lefebvre | E46: F. Lefebvre | F46: 2018 | G46: 185 | H46: 1 | I46: =C45877903[[#This Row],[QUANTITE]]*C45877903[[#This Row],[PRIX UNITAIRE]] -> 185 | J46: Commande
A47: APL | B47: 28242 | C47: 978-2-247-18118-6 | D47: Vers une réforme de la responsabilité civile française : regards croisés franco-québécois / sous la direction de Blandine Mallet-Bricout ; sous l'égide de l'Association Henri Capitant ; avec les contributions de Mireille Bacache-Gibeili, Philipe Brun, François Chénedé et al. | E47: Dalloz | F47: 2018 | G47: 44 | H47: 1 | I47: =C45877903[[#This Row],[QUANTITE]]*C45877903[[#This Row],[PRIX UNITAIRE]] -> 44 | J47: Commande

Sheet 45-89290-1
A1: SITE D'ACHAT | B1: N° LIGNE DAUPHINE | C1: ISBN | D1: TITRE | E1: EDITEUR | F1: ANNEE | G1: PRIX UNITAIRE | H1: QUANTITE | I1: TOTAL | J1: STATUT | K1: REMARQUES
A2: APL | B2: 28195 | C2: 978-2-10-056703-4 | D2: La stratégie prix : le pricing : levier indispensable pour augmenter votre rentabilité / Hermann Simon, Florent Jacquet, Franck Brault 3e édition [mise à jour] Paris : Dunod, DL 2011 Stratégies et management | E2: Dunod | F2: 2011 | G2: 34 | H2: 1 | I2: =C45892901[[#This Row],[PRIX UNITAIRE]]*C45892901[[#This Row],[QUANTITE]] -> 34 | J2: Commande
A3: APL | B3: 28193 | C3: 978-2-911256-99-8 | D3: Introduction à la conception innovante : éléments théoriques et pratiques de la théorie C-K / Marine Agogué, Frédéric Arnoux, Ingi Brown... [et al.] ; [préface de A. Hatchuel et B. Weil ; posface de C. Trémoureux] Paris : Presses des Mines-Transvalor, impr. 2013 Collection Économie et gestion | E3: Presses des Mines-Transvalor | F3: 2013 | G3: 15 | H3: 1 | I3: =C45892901[[#This Row],[PRIX UNITAIRE]]*C45892901[[#This Row],[QUANTITE]] -> 15 | J3: Commande
A4: APL | B4: 28192 | C4: 978-2-311-40148-6 | D4: Études de marché / Jean-Luc Giannelloni,... Éric Vernette,… 4e édition Paris : Vuibert, impr. 2015, cop. 2015 Collection gestion, ISSN 0751-2872 | E4: Vuibert | F4: 2015 | G4: 45 | H4: 1 | I4: =C45892901[[#This Row],[PRIX UNITAIRE]]*C45892901[[#This Row],[QUANTITE]] -> 45 | J4: Commande
A5: APL | B5: 28194 | C5: 978-2-3260-0152-7 | D5: Marketing digital / Dave Chaffey,... Fiona Ellis-Chadwick ; [traduction et adaptation de l'anglais], Maria Mercanti-Guérin,... Henri Isaac,... Pierre Volle,… 6e édition Montreuil : Pearson, copyright 2017 | E5: Pearson | F5: 2017 | G5: 49 | H5: 1 | I5: =C45892901[[#This Row],[PRIX UNITAIRE]]*C45892901[[#This Row],[QUANTITE]] -> 49 | J5: Commande

Sheet 45-89290-2
A1: SITE D'ACHAT | B1: N° LIGNE DAUPHINE | C1: ISBN | D1: TITRE | E1: EDITEUR | F1: ANNEE | G1: PRIX UNITAIRE | H1: QUANTITE | I1: TOTAL | J1: STATUT | K1: REMARQUES
A2: APL | B2: 28181 | C2: 978-2-7619-3882-2 | D2: Cessez d'être gentil, soyez vrai! : être avec les autres en restant soi-même / Thomas d'Ansembourg ; illustrations, Alexis Nouailhat ; préface de Guy Corneau Montréal : HOMME (DE L'), 2013 | E2: HOMME (DE L') | F2: 2013 | G2: 12 | H2: 2 | I2: =C45892902[[#This Row],[QUANTITE]]*C45892902[[#This Row],[PRIX UNITAIRE]] -> 24 | J2: Commande
A3: APL | B3: 28182 | C3: 978-2-266-25883-8 | D3: Choisir sa vie : apprendre à saisir sa chance / Tal Ben-Shahar ; traduit de l'anglais (Etats-Unis) par Hélène Collon Paris : Pocket, 2017 Pocket, ISSN 0244-6405 ; 16361 | E3: Pocket | F3: 2017 | G3: 7.5 | H3: 2 | I3: =C45892902[[#This Row],[QUANTITE]]*C45892902[[#This Row],[PRIX UNITAIRE]] -> 15 | J3: Commande
A4: APL | B4: 28183 | C4: 978-2-88911-973-8 | D4: La communication non violente au quotidien / Marshall B. Rosenberg ; traduction de Simone Mouton di Giovanni ; révisée par Anne Bourrit & Godfrey Spencer Bernex (Suisse) : Jouvence, 2018 Les clés de la CNV | E4: Jouvence | F4: 2018 | G4: 12.9 | H4: 2 | I4: =C45892902[[#This Row],[QUANTITE]]*C45892902[[#This Row],[PRIX UNITAIRE]] -> 25.8 | J4: Commande
A5: APL | B5: 28184 | C5: 978-2-10-071294-6 | D5: Les compétences émotionnelles / sous la direction de Moïra Mikolajczak ; avec la collaboration de Jordi Quoidbach, Ilios Kotsou, Delphine Nelis Nouvelle présentation Malakoff (Hauts-de-Seine) : Dunod, 2014 Psycho sup, ISSN 1275-4854 Psychologie cognitive | E5: Dunod | F5: 2014 | G5: 28 | H5: 1 | I5: =C45892902[[#This Row],[QUANTITE]]*C45892902[[#This Row],[PRIX UNITAIRE]] -> 28 | J5: Commande
A6: APL | B6: 28185 | C6: 978-2-88911-824-3 | D6: Dénouer les conflits par la communication non violente / Marshall B. Rosenberg ; entretiens avec Gabriele Seils ; traduit d'allemand de Daniel Béguin Nouvelle édition Bernex (Suisse) : Jouvence, 2017 Les clés de la CNV | E6: Jouvence | F6: 2017 | G6: 19.5 | H6: 2 | I6: =C45892902[[#This Row],[QUANTITE]]*C45892902[[#This Row],[PRIX UNITAIRE]] -> 39 | J6: Commande
A7: APL | B7: 28186 | C7: 978-2-7381-3411-0 | D7: Et n'oublie pas d'être heureux : abécédaire de psychologie positive / Christophe André Paris : O. Jacob, 2016 | E7: O. Jacob | F7: 2016 | G7: 9.9 | H7: 2 | I7: =C45892902[[#This Row],[QUANTITE]]*C45892902[[#This Row],[PRIX UNITAIRE]] -> 19.8 | J7: Commande
A8: APL | B8: 28187 | C8: 978-2-343-14507-5 | D8: Intelligence et compétences émotionnelles en entreprise : perspectives multiples / sous la direction de Claude Berghmans ; préface Véronique Tran Paris : L'Harmattan, 2018 Economie et innovation, ISSN 1768-5249 | E8: L'Harmattan | F8: 2018 | G8: 35 | H8: 1 | I8: =C45892902[[#This Row],[QUANTITE]]*C45892902[[#This Row],[PRIX UNITAIRE]] -> 35 | J8: Commande
A9: APL | B9: 28188 | C9: 978-2-290-06893-9 | D9: Où tu vas, tu es : apprendre à méditer pour se libérer du stress et des tensions profondes / Jon Kabat-Zinn ; traduit de l'anglais (Etats-Unis) par Yolande Du Luart Nouvelle présentation Paris : J'ai lu, 2013 J'ai lu, ISSN 0291-3623 ; 7516 Bien-être Ahmed Djouder 1159-7623 | E9: J'ai lu | F9: 2013 | G9: 6.7 | H9: 2 | I9: =C45892902[[#This Row],[QUANTITE]]*C45892902[[#This Row],[PRIX UNITAIRE]] -> 13.4 | J9: Commande
A10: APL | B10: 28189 | C10: 978-2-88911-582-2 | D10: Petit cahier d'exercices de communication non violente / Anne van Stappen ; illustrations Jean Augagneur Nouvelle édition Bernex (Suisse) : Jouvence, 2015 Petit cahier, sport cérébral du bien-être ; 10 | E10: Jouvence | F10: 2015 | G10: 6.9 | H10: 2 | I10: =C45892902[[#This Row],[QUANTITE]]*C45892902[[#This Row],[PRIX UNITAIRE]] -> 13.8 | J10: Commande
A11: APL | B11: 28190 | C11: 978-2-412-03399-9 | D11: Trouver son ikigaï : vivre de ce qui nous passionne / Christie Vanbremeersch Paris : First Editions, 2018 L'optimiste | E11: First Editions | F11: 2018 | G11: 12.95 | H11: 2 | I11: =C45892902[[#This Row],[QUANTITE]]*C45892902[[#This Row],[PRIX UNITAIRE]] -> 25.9 | J11: Commande
